fUST/lending_fUST_20241106
["ID","MTS","AMOUNT","RATE_DAILY","PERIOD"]
[341372309,1730851841318,-404.31379373,0.00038356,14]
[341372310,1730851841328,-500.0,0.00038356,14]
[341372311,1730851841338,-500.0,0.00038356,14]
[341372312,1730851841347,-500.0,0.00038356,14]
[341372313,1730851841356,-500.0,0.00038356,14]
[341372314,1730851841365,-500.0,0.00038356,14]
[341372315,1730851841374,-500.0,0.00038356,14]
[341372316,1730851841384,-503.63310034,0.00038356,14]
[341372317,1730851841393,-500.0,0.00038356,14]
[341372318,1730851841402,-500.0,0.00038356,14]
[341372319,1730851841411,-500.0,0.00038356,14]
[341372320,1730851841421,-500.0,0.00038356,14]
[341372321,1730851841430,-538.52402328,0.00038356,14]
[341372322,1730851841439,-500.0,0.00038356,14]
[341372323,1730851841448,-500.0,0.00038356,14]
[341372324,1730851841457,-500.0,0.00038356,14]
[341372325,1730851841466,-500.0,0.00038356,14]
[341372326,1730851841475,-500.0,0.00038356,14]
[341372327,1730851841489,-516.67308479,0.00038356,14]
[341372328,1730851841498,-500.0,0.00038356,14]
[341372329,1730851841507,-500.0,0.00038356,14]
[341372330,1730851841517,-500.0,0.00038356,14]
[341372331,1730851841529,-500.0,0.00038356,14]
[341372332,1730851841538,-323.84159283,0.00038356,14]
[341372333,1730851841547,-501.83121502,0.00038356,14]
[341372334,1730851841559,-523.0922346,0.00038356,14]
[341372335,1730851841570,-500.0,0.00038356,14]
[341372336,1730851841579,-500.0,0.00038356,14]
[341372337,1730851841589,-500.0,0.00038356,14]
[341372338,1730851841599,-500.0,0.00038356,14]
[341372339,1730851841608,-151.0,0.00038356,14]
[341372340,1730851841618,-504.28709739,0.00038356,14]
[341372341,1730851841627,-500.0,0.00038356,14]
[341372342,1730851841637,-506.91562552,0.00038356,14]
[341372343,1730851841646,-500.0,0.00038356,14]
[341372344,1730851841656,-500.0,0.00038356,14]
[341372345,1730851841666,-500.0,0.00038356,14]
[341372346,1730851841675,-500.0,0.00038356,14]
[341372347,1730851841687,-500.0,0.00038356,14]
[341372348,1730851841698,-1462.47,0.00038356,14]
[341372349,1730851841709,-503.22874629,0.00038356,14]
[341372350,1730851841722,-285.04357136,0.00038356,14]
[341372351,1730851841733,-508.14852126,0.00038356,14]
[341372352,1730851841742,-500.0,0.00038356,14]
[341372353,1730851841752,-506.24228222,0.00038356,14]
[341372354,1730851841762,-500.0,0.00038356,14]
[341372355,1730851841773,-516.23045534,0.00038356,14]
[341372356,1730851841782,-500.0,0.00038356,14]
[341372357,1730851841792,-500.0,0.00038356,14]
[341372358,1730851841801,-500.0,0.00038356,14]
[341372359,1730851841810,-500.0,0.00038356,14]
[341372360,1730851841820,-500.0,0.00038356,14]
[341372361,1730851841829,-502.25672124,0.00038356,14]
[341372362,1730851841838,-500.0,0.00038356,14]
[341372363,1730851841848,-500.0,0.00038356,14]
[341372364,1730851841859,-500.0,0.00038356,14]
[341372365,1730851841868,-510.87994634,0.00038356,14]
[341372366,1730851841878,-500.0,0.00038356,14]
[341372367,1730851841887,-517.94341946,0.00038356,14]
[341372368,1730851841962,-500.0,0.00038356,14]
[341372369,1730851841973,-151.463428,0.00038356,14]
[341372370,1730851841982,-509.43431548,0.00038356,14]
[341372371,1730851841992,-500.0,0.00038356,14]
[341372372,1730851842002,-500.0,0.00038356,14]
[341372373,1730851842012,-500.0,0.00038356,14]
[341372374,1730851842024,-500.0,0.00038356,14]
[341372375,1730851842033,-500.0,0.00038356,14]
[341372376,1730851842042,-232.774433,0.00038356,3]
[341372377,1730851842051,-151.0,0.00038356,14]
[341372378,1730851842060,-1000.0,0.00038356,116]
[341372379,1730851842070,-500.0,0.00038356,14]
[341372380,1730851842079,-500.0,0.00038356,14]
[341372381,1730851842088,-500.0,0.00038356,14]
[341372382,1730851842097,-151.0,0.00038356,14]
[341372383,1730851842106,-151.0,0.00038356,14]
[341372384,1730851842117,-156.692364,0.00038356,14]
[341372385,1730851842126,-151.0,0.00038356,14]
[341372386,1730851842135,-151.0,0.00038356,14]
[341372387,1730851842144,-500.0,0.00038356,14]
[341372388,1730851842153,-151.0,0.00038356,14]
[341372389,1730851842163,-151.0,0.00038356,14]
[341372390,1730851842172,-151.0,0.00038356,14]
[341372391,1730851842181,-151.0,0.00038356,14]
[341372392,1730851842190,-151.0,0.00038356,14]
[341372393,1730851842200,-524.07862514,0.00038356,14]
[341372394,1730851842209,-151.0,0.00038356,14]
[341372395,1730851842218,-500.0,0.00038356,14]
[341372396,1730851842227,-200.0,0.00038356,14]
[341372397,1730851842236,-661.98,0.00038356,14]
[341372398,1730851842246,-500.0,0.00038356,14]
[341372399,1730851842255,-500.0,0.00038356,14]
[341372400,1730851842264,-1341.45,0.00038356,14]
[341372401,1730851842274,-508.06677001,0.00038356,14]
[341372402,1730851842284,-500.0,0.00038356,14]
[341372403,1730851842294,-500.0,0.00038356,14]
[341372404,1730851842304,-500.0,0.00038356,14]
[341372405,1730851842314,-500.0,0.00038356,14]
[341372406,1730851842325,-506.42301471,0.00038356,14]
[341372407,1730851842334,-500.0,0.00038356,14]
[341372408,1730851842344,-2560.55,0.00038356,14]
[341372409,1730851842355,-151.0,0.00038356,14]
[341372410,1730851842365,-500.0,0.00038356,14]
[341372411,1730851842377,-151.0,0.00038356,2]
[341372412,1730851842387,-152.704264,0.00038356,2]
[341372413,1730851842397,-311.1607662,0.00038356,14]
[341372414,1730851842407,-500.0,0.00038356,14]
[341372415,1730851842418,-214.00137359,0.00038356,14]
[341372416,1730851842427,-500.0,0.00038356,14]
[341372417,1730851842436,-500.0,0.00038356,14]
[341372418,1730851842446,-508.59418278,0.00038356,14]
[341372419,1730851842456,-200.0,0.00038356,7]
[341372420,1730851842465,-500.0,0.00038356,14]
[341372421,1730851842474,-500.0,0.00038356,14]
[341372422,1730851842486,-230.39125962,0.00038356,14]
[341372423,1730851842496,-500.0,0.00038356,14]
[341372424,1730851842505,-500.0,0.00038356,14]
[341372425,1730851842516,-518.66993308,0.00038356,14]
[341372426,1730851842527,-500.0,0.00038356,14]
[341372427,1730851842536,-500.0,0.00038356,14]
[341372428,1730851842545,-518.76171154,0.00038356,14]
[341372429,1730851842554,-500.0,0.00038356,14]
[341372430,1730851842564,-500.0,0.00038356,14]
[341372431,1730851842574,-500.0,0.00038356,14]
[341372432,1730851842584,-500.0,0.00038356,14]
[341372433,1730851842594,-500.0,0.00038356,14]
[341372434,1730851842604,-500.0,0.00038356,7]
[341372435,1730851842613,-500.0,0.00038356,14]
[341372436,1730851842623,-500.0,0.00038356,14]
[341372437,1730851842633,-500.0,0.00038356,14]
[341372438,1730851842642,-500.0,0.00038356,14]
[341372439,1730851842652,-500.0,0.00038356,14]
[341372440,1730851842661,-546.4964895,0.00038356,14]
[341372441,1730851842671,-500.0,0.00038356,14]
[341372442,1730851842680,-159.36620939,0.00038356,14]
[341372443,1730851842689,-613.34058295,0.00038356,14]
[341372444,1730851842699,-507.91930644,0.00038356,14]
[341372445,1730851842709,-534.0922771,0.00038356,14]
[341372446,1730851842719,-500.0,0.00038356,14]
[341372447,1730851842728,-502.12842486,0.00038356,14]
[341372448,1730851842738,-610.40236435,0.00038356,14]
[341372449,1730851842750,-500.0,0.00038356,14]
[341372450,1730851842761,-500.0,0.00038356,14]
[341372451,1730851842771,-500.0,0.00038356,14]
[341372452,1730851842781,-501.96729696,0.00038356,14]
[341372453,1730851842790,-500.0,0.00038356,14]
[341372454,1730851842801,-500.0,0.00038356,14]
[341372455,1730851842812,-500.0,0.00038356,14]
[341372456,1730851842822,-1118.28,0.00038356,14]
[341372457,1730851842831,-151.0,0.00038356,14]
[341372458,1730851842842,-151.0,0.00038356,14]
[341372459,1730851842851,-500.0,0.00038356,14]
[341372460,1730851842860,-500.0,0.00038356,14]
[341372461,1730851842870,-500.0,0.00038356,14]
[341372462,1730851842879,-500.0,0.00038356,14]
[341372463,1730851842891,-500.0,0.00038356,14]
[341372464,1730851842901,-500.0,0.00038356,14]
[341372465,1730851842911,-500.0,0.00038356,14]
[341372466,1730851842921,-316.29487318,0.00038356,14]
[341372467,1730851842930,-500.0,0.00038356,14]
[341372468,1730851842940,-500.0,0.00038356,14]
[341372469,1730851842950,-500.0,0.00038356,14]
[341372470,1730851842961,-644.89,0.00038356,14]
[341372471,1730851842971,-500.0,0.00038356,14]
[341372472,1730851842983,-151.0,0.00038356,14]
[341372473,1730851842993,-151.0,0.00038356,14]
[341372474,1730851843003,-151.0,0.00038356,14]
[341372475,1730851843014,-636.46,0.00038356,14]
[341372476,1730851843027,-151.0,0.00038356,14]
[341372477,1730851843037,-151.0,0.00038356,14]
[341372478,1730851843048,-151.0,0.00038356,14]
[341372479,1730851843058,-151.0,0.00038356,14]
[341372480,1730851843069,-151.0,0.00038356,14]
[341372481,1730851843078,-500.0,0.00038356,14]
[341372482,1730851843087,-363.79559982,0.00038356,14]
[341372483,1730851843097,-500.0,0.00038356,14]
[341372484,1730851843106,-500.0,0.00038356,14]
[341372485,1730851843115,-151.0,0.00038356,14]
[341372486,1730851843124,-151.0,0.00038356,14]
[341372487,1730851843133,-500.0,0.00038356,14]
[341372488,1730851843143,-500.0,0.00038356,14]
[341372489,1730851843152,-500.0,0.00038356,14]
[341372490,1730851843162,-500.0,0.00038356,14]
[341372491,1730851843172,-151.0,0.00038356,14]
[341372492,1730851843183,-151.0,0.00038356,14]
[341372493,1730851843193,-151.0,0.00038356,14]
[341372494,1730851843203,-500.0,0.00038356,14]
[341372495,1730851843212,-517.5779366,0.00038356,14]
[341372496,1730851843222,-151.0,0.00038356,14]
[341372497,1730851843231,-151.0,0.00038356,14]
[341372499,1730851843240,-159.18465834,0.00038356,14]
[341372501,1730851843249,-272.63832,0.00038356,14]
[341372502,1730851843258,-500.0,0.00038356,14]
[341372503,1730851843270,-631.58,0.00038356,14]
[341372504,1730851843280,-500.0,0.00038356,14]
[341372505,1730851843291,-4427.04,0.00038356,14]
[341372506,1730851843301,-501.17588802,0.00038356,14]
[341372507,1730851843310,-500.0,0.00038356,14]
[341372508,1730851843320,-513.88296897,0.00038356,14]
[341372509,1730851843394,-500.0,0.00038356,14]
[341372510,1730851843405,-500.82577978,0.00038356,14]
[341372511,1730851843415,-500.0,0.00038356,14]
[341372512,1730851843424,-500.0,0.00038356,14]
[341372513,1730851843434,-1223.51,0.00038356,14]
[341372514,1730851843444,-500.0,0.00038356,14]
[341372515,1730851843455,-638.36251477,0.00038356,14]
[341372516,1730851843467,-576.16786594,0.00038356,14]
[341372517,1730851843477,-525.05,0.00038356,14]
[341372518,1730851843492,-500.0,0.00038356,14]
[341372519,1730851843501,-500.0,0.00038356,14]
[341372520,1730851843510,-500.0,0.00038356,14]
[341372521,1730851843522,-500.0,0.00038356,14]
[341372522,1730851843533,-500.0,0.00038356,14]
[341372523,1730851843543,-500.0,0.00038356,14]
[341372524,1730851843554,-151.0,0.00038356,14]
[341372525,1730851843566,-288.940211,0.00038356,14]
[341372526,1730851843578,-500.0,0.00038356,14]
[341372527,1730851843588,-500.0,0.00038356,14]
[341372528,1730851843598,-500.0,0.00038356,14]
[341372529,1730851843608,-336.82492546,0.00038356,14]
[341372530,1730851843617,-500.0,0.00038356,14]
[341372531,1730851843626,-500.0,0.00038356,14]
[341372532,1730851843635,-500.0,0.00038356,14]
[341372533,1730851843644,-500.0,0.00038356,14]
[341372534,1730851843654,-6810.82,0.00038356,14]
[341372535,1730851843663,-500.0,0.00038356,14]
[341372536,1730851843673,-500.0,0.00038356,14]
[341372537,1730851843682,-500.0,0.00038356,14]
[341372538,1730851843691,-3182.56,0.00038356,14]
[341372539,1730851843700,-500.0,0.00038356,14]
[341372540,1730851843710,-154.038182,0.00038356,14]
[341372541,1730851843721,-500.0,0.00038356,14]
[341372542,1730851843731,-501.4700491,0.00038356,14]
[341372543,1730851843741,-500.0,0.00038356,14]
[341372544,1730851843751,-500.0,0.00038356,14]
[341372545,1730851843761,-321.50431857,0.00038356,14]
[341372546,1730851843771,-500.0,0.00038356,14]
[341372547,1730851843780,-500.0,0.00038356,14]
[341372548,1730851843789,-500.0,0.00038356,14]
[341372549,1730851843800,-502.32889032,0.00038356,14]
[341372550,1730851843811,-500.0,0.00038356,14]
[341372551,1730851843822,-500.0,0.00038356,14]
[341372552,1730851843833,-500.0,0.00038356,14]
[341372553,1730851843842,-500.0,0.00038356,14]
[341372554,1730851843852,-151.0,0.00038356,14]
[341372555,1730851843861,-513.16187862,0.00038356,14]
[341372556,1730851843871,-151.0,0.00038356,14]
[341372557,1730851843881,-507.60800119,0.00038356,14]
[341372558,1730851843890,-500.0,0.00038356,14]
[341372559,1730851843900,-503.29479077,0.00038356,14]
[341372560,1730851843909,-500.0,0.00038356,14]
[341372561,1730851843919,-525.11457789,0.00038356,14]
[341372562,1730851843930,-500.0,0.00038356,14]
[341372563,1730851843940,-511.2470745,0.00038356,14]
[341372564,1730851843950,-500.0,0.00038356,14]
[341372565,1730851843959,-521.87194393,0.00038356,14]
[341372566,1730851843969,-500.0,0.00038356,14]
[341372567,1730851843978,-500.0,0.00038356,14]
[341372568,1730851843988,-504.27287054,0.00038356,14]
[341372569,1730851843997,-506.29667957,0.00038356,14]
[341372571,1730851844007,-500.0,0.00038356,14]
[341372573,1730851844017,-500.0,0.00038356,14]
[341372575,1730851844028,-151.0,0.00038356,14]
[341372576,1730851844038,-151.0,0.00038356,14]
[341372577,1730851844048,-151.0,0.00038356,14]
[341372578,1730851844058,-151.0,0.00038356,14]
[341372579,1730851844067,-500.0,0.00038356,14]
[341372580,1730851844077,-151.0,0.00038356,14]
[341372581,1730851844087,-151.0,0.00038356,14]
[341372582,1730851844097,-520.26227639,0.00038356,14]
[341372583,1730851844106,-500.0,0.00038356,14]
[341372585,1730851844116,-500.0,0.00038356,14]
[341372587,1730851844125,-506.10672077,0.00038356,14]
[341372589,1730851844135,-500.0,0.00038356,14]
[341372590,1730851844145,-606.93,0.00038356,14]
[341372591,1730851844154,-8825.3,0.00038356,14]
[341372592,1730851844164,-500.0,0.00038356,14]
[341372595,1730851844174,-500.0,0.00038356,14]
[341372597,1730851844183,-500.0,0.00038356,14]
[341372599,1730851844193,-504.85956342,0.00038356,14]
[341372600,1730851844202,-500.0,0.00038356,14]
[341372601,1730851844211,-500.0,0.00038356,14]
[341372603,1730851844221,-500.0,0.00038356,14]
[341372605,1730851844231,-501.0,0.00038356,14]
[341372607,1730851844241,-500.0,0.00038356,14]
[341372609,1730851844251,-1455.36,0.00038356,14]
[341372611,1730851844260,-502.83851007,0.00038356,14]
[341372613,1730851844269,-1004.84135951,0.00038356,14]
[341372615,1730851844281,-500.0,0.00038356,14]
[341372617,1730851844295,-505.70262019,0.00038356,14]
[341372619,1730851844305,-500.0,0.00038356,14]
[341372621,1730851844314,-500.0,0.00038356,14]
[341372623,1730851844323,-2815.03,0.00038356,14]
[341372624,1730851844333,-574.09492706,0.00038356,14]
[341372626,1730851844342,-528.02626873,0.00038356,14]
[341372628,1730851844351,-500.0,0.00038356,14]
[341372630,1730851844361,-500.0,0.00038356,14]
[341372631,1730851844370,-500.0,0.00038356,14]
[341372632,1730851844379,-500.0,0.00038356,14]
[341372633,1730851844389,-152.941684,0.00038356,14]
[341372634,1730851844398,-500.0,0.00038356,14]
[341372635,1730851844408,-500.0,0.00038356,14]
[341372636,1730851844418,-729.46,0.00038356,14]
[341372637,1730851844427,-500.0,0.00038356,14]
[341372638,1730851844437,-500.0,0.00038356,14]
[341372639,1730851844447,-500.0,0.00038356,14]
[341372640,1730851844457,-500.0,0.00038356,7]
[341372641,1730851844469,-500.0,0.00038356,2]
[341372642,1730851844479,-500.0,0.00038356,14]
[341372643,1730851844490,-500.0,0.00038356,14]
[341372644,1730851844500,-500.0,0.00038356,14]
[341372645,1730851844511,-500.0,0.00038356,14]
[341372646,1730851844523,-151.0,0.00038356,14]
[341372647,1730851844532,-151.0,0.00038356,14]
[341372649,1730851844541,-151.0,0.00038356,14]
[341372650,1730851844550,-501.3390535,0.00038356,14]
[341372651,1730851844562,-151.0,0.00038356,14]
[341372652,1730851844572,-500.0,0.00038356,14]
[341372653,1730851844582,-151.0,0.00038356,14]
[341372654,1730851844592,-641.2628055,0.00038356,14]
[341372655,1730851844602,-427.37158506,0.00038356,14]
[341372656,1730851844613,-500.0,0.00038356,14]
[341372657,1730851844623,-500.0,0.00038356,14]
[341372658,1730851844634,-500.0,0.00038356,14]
[341372659,1730851844645,-500.0,0.00038356,14]
[341372660,1730851844654,-505.41932999,0.00038356,14]
[341372661,1730851844664,-2845.09,0.00038356,14]
[341372662,1730851844727,-550.64,0.00038356,14]
[341372663,1730851844737,-645.18,0.00038356,14]
[341372664,1730851844746,-500.0,0.00038356,14]
[341372665,1730851844755,-500.0,0.00038356,14]
[341372666,1730851844764,-500.0,0.00038356,14]
[341372667,1730851844775,-610.70831622,0.00038356,14]
[341372668,1730851844784,-502.01751329,0.00038356,14]
[341372669,1730851844793,-500.0,0.00038356,14]
[341372670,1730851844803,-500.0,0.00038356,14]
[341372671,1730851844812,-515.35,0.00038356,14]
[341372672,1730851844822,-500.0,0.00038356,14]
[341372673,1730851844832,-500.0,0.00038356,14]
[341372674,1730851844842,-500.0,0.00038356,14]
[341372675,1730851844851,-1340.12,0.00038356,14]
[341372676,1730851844861,-500.0,0.00038356,14]
[341372677,1730851844871,-500.0,0.00038356,14]
[341372678,1730851844880,-610.80245127,0.00038356,14]
[341372679,1730851844890,-500.0,0.00038356,14]
[341372680,1730851844899,-500.0,0.00038356,14]
[341372681,1730851844909,-500.0,0.00038356,14]
[341372682,1730851844918,-500.0,0.00038356,14]
[341372683,1730851844927,-500.0,0.00038356,14]
[341372684,1730851844937,-500.0,0.00038356,14]
[341372685,1730851844947,-500.0,0.00038356,14]
[341372686,1730851844957,-151.0,0.00038356,14]
[341372687,1730851844967,-500.0,0.00038356,14]
[341372688,1730851844978,-151.0,0.00038356,14]
[341372689,1730851844987,-151.0,0.00038356,14]
[341372690,1730851844998,-176.574273,0.00038356,14]
[341372691,1730851845008,-500.0,0.00038356,14]
[341372692,1730851845017,-500.0,0.00038356,14]
[341372693,1730851845028,-500.0,0.00038356,14]
[341372694,1730851845037,-505.55887462,0.00038356,14]
[341372695,1730851845046,-500.0,0.00038356,14]
[341372696,1730851845055,-500.0,0.00038356,14]
[341372697,1730851845064,-500.0,0.00038356,14]
[341372698,1730851845073,-500.0,0.00038356,14]
[341372699,1730851845084,-500.0,0.00038356,14]
[341372700,1730851845094,-500.0,0.00038356,10]
[341372701,1730851845103,-500.0,0.00038356,14]
[341372702,1730851845112,-151.0,0.00038356,14]
[341372703,1730851845122,-153.284435,0.00038356,14]
[341372704,1730851845132,-544.26047387,0.00038356,14]
[341372705,1730851845141,-503.88016182,0.00038356,14]
[341372706,1730851845151,-678.27,0.00038356,14]
[341372707,1730851845160,-505.36495048,0.00038356,14]
[341372708,1730851845171,-250.0,0.00038356,14]
[341372709,1730851845180,-500.0,0.00038356,14]
[341372710,1730851845189,-554.04631003,0.00038356,14]
[341372711,1730851845199,-500.0,0.00038356,14]
[341372712,1730851845208,-500.0,0.00038356,14]
[341372713,1730851845218,-500.0,0.00038356,14]
[341372714,1730851845228,-500.0,0.00038356,14]
[341372715,1730851845237,-500.0,0.00038356,14]
[341372716,1730851845247,-509.50211494,0.00038356,14]
[341372717,1730851845257,-577.59349659,0.00038373,5]
[341372718,1730851845267,-500.0,0.00038373,2]
[341372719,1730851845278,-500.0,0.00038373,5]
[341372720,1730851845287,-500.0,0.00038373,5]
[341372721,1730851845297,-187.32735523,0.00038373,2]
[341372722,1730851845306,-500.0,0.00038373,5]
[341372723,1730851845316,-151.0,0.00038548,120]
[341372724,1730851845326,-405.65601356,0.0003863,14]
[341372725,1730851845335,-500.0,0.0003863,14]
[341372726,1730851845345,-500.0,0.0003863,14]
[341372727,1730851845354,-365.29854441,0.0003863,14]
[341372728,1730851845363,-500.0,0.0003863,14]
[341372729,1730851845372,-500.0,0.0003863,14]
[341372730,1730851845381,-500.0,0.0003863,14]
[341372731,1730851845390,-500.0,0.0003863,14]
[341372732,1730851845400,-500.0,0.0003863,14]
[341372733,1730851845410,-500.0,0.0003863,14]
[341372734,1730851845419,-500.0,0.0003863,14]
[341372735,1730851845428,-500.0,0.0003863,14]
[341372736,1730851845438,-637.07683377,0.0003863,14]
[341372737,1730851845447,-367.9016132,0.0003863,14]
[341372738,1730851845456,-709.11394042,0.0003863,30]
[341372739,1730851845467,-521.16735338,0.0003863,14]
[341372740,1730851845477,-508.73353661,0.0003863,14]
[341372741,1730851845490,-527.85695948,0.0003863,14]
[341372742,1730851845501,-224.31482418,0.0003863,14]
[341372743,1730851845511,-414.44494095,0.0003863,14]
[341372744,1730851845520,-500.0,0.0003863,14]
[341372745,1730851845530,-507.53454466,0.0003863,14]
[341372746,1730851845539,-506.55889492,0.0003863,14]
[341372747,1730851845549,-500.0,0.0003863,14]
[341372748,1730851845560,-500.0,0.0003863,14]
[341372749,1730851845570,-508.01088676,0.0003863,14]
[341372750,1730851845581,-500.0,0.0003863,14]
[341372751,1730851845591,-500.0,0.0003863,14]
[341372752,1730851845600,-501.54412618,0.0003863,14]
[341372753,1730851845610,-500.0,0.0003863,14]
[341372754,1730851845620,-500.0,0.0003863,14]
[341372755,1730851845630,-500.0,0.0003863,14]
[341372756,1730851845641,-510.96131442,0.0003863,14]
[341372757,1730851845653,-872.9,0.0003863,14]
[341372758,1730851845663,-500.0,0.0003863,120]
[341372759,1730851845673,-500.0,0.0003863,14]
[341372760,1730851845683,-500.0,0.0003863,14]
[341372761,1730851845693,-500.0,0.0003863,14]
[341372762,1730851845703,-500.0,0.0003863,14]
[341372763,1730851845712,-500.0,0.0003863,14]
[341372764,1730851845722,-507.09088254,0.0003863,14]
[341372765,1730851845732,-505.70423791,0.0003863,14]
[341372766,1730851845742,-500.0,0.0003863,14]
[341372767,1730851845752,-500.0,0.0003863,14]
[341372768,1730851845762,-502.65482888,0.0003863,14]
[341372769,1730851845773,-500.0,0.0003863,14]
[341372770,1730851845783,-500.0,0.0003863,14]
[341372771,1730851845793,-500.0,0.0003863,14]
[341372772,1730851845802,-500.0,0.0003863,14]
[341372773,1730851845812,-500.0,0.0003863,14]
[341372774,1730851845823,-500.0,0.0003863,14]
[341372775,1730851845831,-500.0,0.0003863,14]
[341372776,1730851845841,-500.0,0.0003863,14]
[341372777,1730851845851,-500.0,0.0003863,14]
[341372778,1730851845861,-500.0,0.0003863,14]
[341372779,1730851845871,-180.209695,0.0003863,14]
[341372780,1730851845937,-500.0,0.0003863,14]
[341372781,1730851845947,-500.0,0.0003863,14]
[341372782,1730851845956,-500.0,0.0003863,14]
[341372783,1730851845966,-500.0,0.0003863,14]
[341372784,1730851845976,-500.0,0.0003863,14]
[341372785,1730851845985,-500.0,0.0003863,14]
[341372786,1730851845995,-500.0,0.0003863,14]
[341372787,1730851846006,-500.0,0.0003863,14]
[341372788,1730851846016,-500.0,0.0003863,14]
[341372789,1730851846027,-500.0,0.0003863,14]
[341372790,1730851846037,-500.0,0.0003863,14]
[341372791,1730851846047,-237.5872132,0.0003863,14]
[341372792,1730851846057,-544.35872785,0.0003863,14]
[341372793,1730851846068,-500.0,0.0003863,14]
[341372794,1730851846077,-500.0,0.0003863,14]
[341372795,1730851846088,-500.0,0.0003863,14]
[341372796,1730851846098,-377.97250989,0.0003863,14]
[341372797,1730851846109,-500.0,0.0003863,14]
[341372799,1730851846118,-500.0,0.0003863,14]
[341372801,1730851846128,-500.0,0.0003863,14]
[341372802,1730851846138,-500.0,0.0003863,14]
[341372803,1730851846148,-500.0,0.0003863,14]
[341372804,1730851846157,-502.33342866,0.0003863,14]
[341372805,1730851846167,-515.28482306,0.0003863,14]
[341372807,1730851846176,-500.0,0.0003863,14]
[341372809,1730851846186,-500.0,0.0003863,14]
[341372810,1730851846196,-500.0,0.0003863,14]
[341372811,1730851846206,-500.0,0.0003863,14]
[341372812,1730851846215,-500.0,0.0003863,14]
[341372813,1730851846225,-500.0,0.0003863,14]
[341372814,1730851846234,-1462.47,0.0003863,14]
[341372815,1730851846244,-500.0,0.0003863,14]
[341372816,1730851846254,-500.0,0.0003863,14]
[341372817,1730851846266,-309.33355079,0.0003863,14]
[341372818,1730851846278,-500.0,0.0003863,14]
[341372819,1730851846288,-500.0,0.0003863,14]
[341372820,1730851846297,-500.0,0.0003863,14]
[341372821,1730851846307,-500.0,0.0003863,14]
[341372822,1730851846317,-500.0,0.0003863,14]
[341372823,1730851846326,-385.96,0.0003863,14]
[341372824,1730851846336,-500.0,0.0003863,14]
[341372826,1730851846345,-500.0,0.0003863,14]
[341372827,1730851846357,-500.0,0.0003863,14]
[341372829,1730851846366,-527.22244172,0.0003863,14]
[341372830,1730851846376,-1000.0,0.0003863,116]
[341372831,1730851846386,-508.04778814,0.0003863,14]
[341372832,1730851846396,-500.0,0.0003863,14]
[341372833,1730851846406,-500.0,0.0003863,14]
[341372834,1730851846415,-661.98,0.0003863,14]
[341372835,1730851846424,-1341.45,0.0003863,14]
[341372836,1730851846434,-500.0,0.0003863,14]
[341372837,1730851846444,-500.0,0.0003863,14]
[341372838,1730851846454,-511.95879681,0.0003863,14]
[341372839,1730851846463,-500.0,0.0003863,14]
[341372840,1730851846474,-2560.55,0.0003863,14]
[341372841,1730851846494,-500.0,0.0003863,14]